bitfinex-derivatives/quotes_SOLF0:USTF0_20251115
["timestamp","ask_amount","ask_price","bid_price","bid_amount"]
[1763167194114,3.25,140.28,140.21,3.06]
[1763167194424,3.30356917,140.28,140.23,0.04937535]
[1763167194721,3.25,140.26,140.23,0.04937535]
[1763167195917,3.30356917,140.28,140.24,1.75477424]
[1763167196122,0.05356917,140.28,140.26,1.75477424]
[1763167196422,0.05356917,140.28,140.26,4.81477424]
[1763167196617,0.05356917,140.28,140.27,3.06]
[1763167196816,3.25,140.34,140.27,3.06]
[1763167197019,3.25,140.34,140.29,1.75477424]
[1763167197224,3.25,140.34,140.29,4.81477424]
[1763167197825,0.0486694,140.33,140.3,0.05485588]
[1763167198021,0.0486694,140.33,140.3,3.11485588]
[1763167198222,0.0486694,140.33,140.3,0.05485588]
[1763167198428,3.2986694,140.33,140.3,0.05485588]
[1763167200625,0.0486694,140.33,140.3,3.11485588]
[1763167203537,3.2986694,140.33,140.3,0.05485588]
[1763167204836,9.6694,140.32,140.3,0.05485588]
[1763167205036,3.25,140.32,140.3,0.05485588]
[1763167206637,0.0486694,140.33,140.3,0.05485588]
[1763167206638,0.0486694,140.33,140.3,3.22485588]
[1763167207529,9.6662,140.39,140.3,3.22485588]
[1763167207739,9.6662,140.39,140.3,3.17]
[1763167208432,3.30444636,140.36,140.33,0.0472515]
[1763167208634,3.29842493,140.36,140.33,0.05287859]
[1763167209742,0.04842493,140.36,140.33,0.05287859]
[1763167210044,3.21842493,140.36,140.33,0.05287859]
[1763167214042,0.04842493,140.36,140.33,3.36287859]
[1763167216249,3.21842493,140.36,140.33,0.05287859]
[1763167216546,3.17,140.35,140.33,0.05287859]
[1763167219450,3.17,140.34,140.26,4.54986817]
[1763167220041,3.17,140.34,140.26,3.31]
[1763167220450,3.21679707,140.31,140.29,0.05423615]
[1763167221344,0.04679707,140.31,140.29,3.36423615]
[1763167226655,3.21679707,140.31,140.29,0.05423615]
[1763167226855,0.04679707,140.31,140.29,3.36423615]
[1763167227245,0.04679707,140.31,140.29,0.05423615]
[1763167227655,0.04679707,140.31,140.29,3.36423615]
[1763167227861,3.21679707,140.31,140.29,0.05423615]
[1763167232248,0.04679707,140.31,140.29,0.05423615]
[1763167234260,0.04679707,140.31,140.29,3.32423615]
[1763167236562,0.04679707,140.31,140.29,11.97848573]
[1763167236760,3.05,140.41,140.3,3.27]
[1763167237456,9.4671,140.37,140.3,3.27]
[1763167237657,0.05223233,140.35,140.32,0.05462835]
[1763167237853,3.10223233,140.35,140.32,0.05462835]
[1763167241461,0.05223233,140.35,140.32,3.32462835]
[1763167241665,0.05223233,140.35,140.34,3.27]
[1763167241860,3.05,140.41,140.34,11.92424958]
[1763167242269,3.05,140.4,140.34,11.92424958]
[1763167242763,0.05344356,140.38,140.36,0.04546174]
[1763167244269,0.05344356,140.38,140.36,3.31546174]
[1763167246678,3.10344356,140.38,140.36,0.04546174]
[1763167247177,0.05344356,140.38,140.36,3.31546174]
[1763167251185,3.05,140.41,140.36,3.31546174]
[1763167251394,9.4639,140.44,140.37,3.27]
[1763167251889,3.05,140.43,140.37,3.27]
[1763167252389,0.0512132,140.41,140.39,0.04784487]
[1763167253491,0.0512132,140.41,140.39,3.31784487]
[1763167254187,3.1012132,140.41,140.39,0.04784487]
[1763167256180,6.4665132,140.41,140.33,11.92424958]
[1763167256384,3.05,140.4,140.33,3.27]
[1763167257293,3.0992531,140.38,140.35,0.05316924]
[1763167259190,3.0992531,140.38,140.35,3.32316924]
[1763167260786,3.0992531,140.38,140.35,0.05316924]
[1763167260987,0.0492531,140.38,140.35,3.32316924]
[1763167261287,3.0992531,140.38,140.35,0.05316924]
[1763167261487,3.05,140.35,140.27,8.65424958]
[1763167261885,3.05,140.33,140.26,11.92424958]
[1763167262080,3.05,140.32,140.24,9.89447125]
[1763167262289,3.05,140.32,140.22,8.65424958]
[1763167262482,3.05,140.27,140.26,0.054066]
[1763167262687,3.05,140.27,140.25,0.05388607]
[1763167265693,0.05040121,140.28,140.25,0.05388607]
[1763167265694,0.05040121,140.28,140.25,3.21388607]
[1763167269399,3.35040121,140.28,140.25,3.21388607]
[1763167269892,0.05040121,140.28,140.25,3.21388607]
[1763167271500,3.14040121,140.28,140.25,0.05388607]
[1763167271704,3.14040121,140.28,140.25,3.29388607]
[1763167271995,0.05040121,140.28,140.25,3.29388607]
[1763167280395,0.05040121,140.28,140.27,3.24]
[1763167280998,3.09,140.33,140.27,3.24]
[1763167281198,3.09,140.36,140.3,1.7539733]
[1763167281498,3.09,140.36,140.31,3.24]
[1763167282205,3.13726336,140.35,140.32,0.05287484]
[1763167283003,3.09,140.34,140.32,0.05287484]
[1763167283398,3.09,140.33,140.32,0.05287484]
[1763167288497,3.09,140.33,140.27,3.24]
[1763167288706,3.09,140.33,140.26,1.7539733]
[1763167289711,3.09,140.3,140.28,0.04564297]
[1763167290108,0.052317,140.31,140.28,3.28564297]
[1763167290302,3.142317,140.31,140.28,3.28564297]
[1763167290510,3.142317,140.31,140.28,0.04564297]
[1763167292416,3.09,140.29,140.28,0.04564297]
[1763167294019,3.16,140.27,140.21,1.7539733]
[1763167294309,3.16,140.27,140.2,3.31]
[1763167295112,3.16,140.24,140.22,0.05056503]
[1763167300614,3.207789,140.25,140.22,3.36056503]
[1763167301420,0.047789,140.25,140.22,3.36056503]
[1763167301726,3.16,140.31,140.25,3.31]
[1763167302022,3.16,140.31,140.24,10.40822288]
[1763167302518,3.16,140.3,140.24,13.71822288]
[1763167302725,0.05328209,140.28,140.26,0.0546909]
[1763167302922,3.21328209,140.28,140.26,0.0546909]
[1763167303823,0.05328209,140.28,140.26,3.3646909]
[1763167304328,0.05328209,140.28,140.26,5.1186642]
[1763167307120,0.05328209,140.28,140.27,3.31]
[1763167308222,0.05328209,140.28,140.27,11.96424958]
[1763167309335,3.16,140.37,140.31,1.7539733]
[1763167309533,6.4184,140.34,140.31,1.7539733]
[1763167309738,3.16,140.33,140.31,1.7539733]
[1763167310131,3.20805344,140.33,140.31,0.05242634]
[1763167310433,3.20805344,140.33,140.31,1.80639964]
[1763167311241,3.16,140.37,140.32,3.31]
[1763167311432,3.16,140.37,140.34,1.7539733]
[1763167312233,3.21450572,140.37,140.34,1.80091474]
[1763167312429,3.21450572,140.37,140.34,5.11091474]
[1763167312636,0.05450572,140.37,140.36,1.7539733]
[1763167312829,3.21450572,140.37,140.36,1.7539733]
[1763167315952,3.21450572,140.37,140.34,0.04694144]
[1763167316158,3.21450572,140.37,140.34,1.80091474]
[1763167316554,3.21450572,140.37,140.34,5.11091474]
[1763167320158,3.21450572,140.37,140.35,1.7539733]
[1763167321059,3.16,140.36,140.35,1.7539733]
[1763167322961,3.16,140.36,140.34,0.04694144]
[1763167323561,3.16,140.35,140.34,0.04694144]
[1763167324761,3.12450572,140.37,140.34,3.28694144]
[1763167325060,3.12450572,140.37,140.35,1.7539733]
[1763167326162,9.54160572,140.37,140.34,0.04694144]
[1763167326357,3.12450572,140.37,140.34,0.04694144]
[1763167326961,3.07,140.36,140.34,0.04694144]
[1763167327761,9.4875,140.36,140.34,0.04694144]
[1763167327961,3.07,140.35,140.34,0.04694144]
[1763167329857,3.09,140.36,140.34,0.04694144]
[1763167330558,3.09,140.35,140.34,0.04694144]
[1763167331764,3.09,140.36,140.34,0.04694144]
[1763167332163,3.14450572,140.37,140.34,3.23694144]
[1763167334358,0.05450572,140.37,140.35,4.9439733]
[1763167334967,0.05450572,140.37,140.36,3.19]
[1763167341766,0.05450572,140.37,140.34,2.78326983]
[1763167341963,3.14450572,140.37,140.34,0.04694144]
[1763167342470,3.09,140.36,140.34,0.04694144]
[1763167343570,3.14450572,140.37,140.34,3.23694144]
[1763167344375,3.14450572,140.37,140.34,0.04694144]
[1763167345273,9.56170572,140.37,140.34,0.04694144]
[1763167345576,3.09,140.36,140.34,0.04694144]
[1763167346670,3.09,140.36,140.34,3.23694144]
[1763167347270,3.09,140.36,140.34,0.04694144]
[1763167351069,3.09,140.35,140.34,0.04694144]
[1763167352271,9.5079,140.35,140.34,0.04694144]
[1763167354679,3.15,140.32,140.29,8.66458992]
[1763167355266,3.15,140.32,140.28,8.66458992]
[1763167355668,6.4189,140.33,140.29,0.05219924]
[1763167355669,3.15,140.3,140.29,0.05219924]
[1763167356283,0.04929206,140.31,140.29,3.37219924]
[1763167356482,3.19929206,140.31,140.29,0.05219924]
[1763167357787,3.15,140.3,140.29,0.05219924]
[1763167357978,3.15,140.3,140.24,8.66458992]
[1763167358284,3.15,140.28,140.23,8.66458992]
[1763167358482,3.15,140.28,140.23,3.32]
[1763167358784,3.15,140.27,140.23,3.32]
[1763167358969,6.4213,140.28,140.24,3.37244696]
[1763167358970,0.0531914,140.26,140.24,3.37244696]
[1763167359176,0.0531914,140.26,140.24,12.03703688]
[1763167359371,0.0531914,140.26,140.25,3.32]
[1763167361888,3.2031914,140.26,140.24,0.05244696]
[1763167362081,0.0531914,140.26,140.24,3.37244696]
[1763167363079,3.2031914,140.26,140.24,3.37244696]
[1763167363382,0.0531914,140.26,140.24,3.37244696]
[1763167363888,3.2031914,140.26,140.24,3.37244696]
[1763167364186,3.2031914,140.26,140.24,0.05244696]
[1763167365081,0.0531914,140.26,140.24,3.37244696]
[1763167365583,3.2031914,140.26,140.24,3.37244696]
[1763167365978,3.2031914,140.26,140.24,0.05244696]
[1763167366283,0.0531914,140.26,140.24,3.37244696]
[1763167372198,9.5697,140.32,140.25,3.32]
[1763167372393,3.15,140.32,140.25,3.32]
[1763167372894,3.15,140.35,140.26,3.32]
[1763167373191,0.05035201,140.32,140.3,3.32]
[1763167373779,9.5666,140.38,140.3,3.32]
[1763167373984,3.15,140.41,140.31,3.32]
[1763167374386,3.15,140.41,140.32,3.32]
[1763167374783,0.0495723,140.38,140.35,3.36799909]
[1763167375384,3.1995723,140.38,140.35,3.36799909]
[1763167378997,0.0495723,140.38,140.35,3.36799909]
[1763167383998,0.0495723,140.38,140.37,3.21]
[1763167384198,3.15,140.44,140.37,3.21]
[1763167385099,0.05209056,140.42,140.4,3.21]
[1763167385295,3.38209056,140.42,140.39,0.05357768]
[1763167386100,3.38209056,140.42,140.39,3.26357768]
[1763167386897,3.38209056,140.42,140.39,0.05357768]
[1763167387095,0.05209056,140.42,140.39,3.26357768]
[1763167387404,3.38209056,140.42,140.39,3.26357768]
[1763167389406,3.38209056,140.42,140.39,0.05357768]
[1763167389905,3.38209056,140.42,140.39,3.14357768]
[1763167390898,3.38209056,140.42,140.39,0.05357768]
[1763167391304,3.24,140.4,140.31,3.09]
[1763167391504,3.24,140.38,140.31,3.09]
[1763167392307,0.04738199,140.36,140.34,3.09]
[1763167392899,3.24,140.41,140.34,3.09]
[1763167393101,3.24,140.44,140.34,3.09]
[1763167393709,3.24,140.44,140.36,2.73632839]
[1763167393913,0.05035741,140.4,140.39,3.09]
[1763167394112,0.05269984,140.41,140.39,3.09]
[1763167396710,3.24,140.47,140.39,5.82632839]
[1763167396905,3.24,140.47,140.4,3.09]
[1763167397710,0.05242161,140.45,140.43,3.09]
[1763167398210,0.05242161,140.45,140.42,3.1354433]
[1763167398514,3.29242161,140.45,140.42,3.1354433]
[1763167398713,0.05242161,140.45,140.42,3.1354433]
[1763167399811,0.05242161,140.45,140.44,3.09]
[1763167402118,3.24,140.52,140.44,3.09]
[1763167402312,3.24,140.52,140.46,3.09]
[1763167403317,3.28722561,140.5,140.48,0.04722219]
[1763167406425,0.04722561,140.5,140.48,3.13722219]
[1763167406614,1.74965079,140.56,140.49,1.74965079]
[1763167406822,3.24,140.57,140.5,3.09]
[1763167407017,3.24,140.57,140.51,1.74965079]
[1763167407324,3.24,140.57,140.52,3.09]
[1763167407714,3.24,140.54,140.53,0.04810789]
[1763167407911,3.24,140.54,140.46,3.09]
[1763167408114,3.24,140.52,140.46,3.09]
[1763167408924,3.28864891,140.5,140.48,0.0506616]
[1763167411519,3.24,140.49,140.48,0.0506616]
[1763167413230,0.04864891,140.5,140.48,0.0506616]
[1763167413431,0.04864891,140.5,140.48,3.1406616]
[1763167424230,3.35864891,140.5,140.48,0.0506616]
[1763167425929,3.35864891,140.5,140.4,9.63747274]
[1763167425930,4.73,140.49,140.4,9.63747274]
[1763167426235,3.31,140.48,140.4,3.24]
[1763167426626,3.31,140.46,140.4,9.63747274]
[1763167426832,3.31,140.46,140.42,0.05453747]
[1763167427032,3.36264538,140.44,140.42,0.05453747]
[1763167427236,3.36192261,140.44,140.42,0.05453747]
[1763167430031,3.36192261,140.44,140.36,9.68260984]
[1763167430231,3.31,140.43,140.36,9.68260984]
[1763167430432,3.31,140.43,140.36,3.24]
[1763167430740,9.7244,140.43,140.36,3.24]
[1763167430936,3.31,140.42,140.36,3.24]
[1763167431139,3.31,140.39,140.38,0.04982432]
[1763167431336,0.05046343,140.4,140.38,0.04982432]
[1763167432438,0.05046343,140.4,140.38,3.28982432]
[1763167434348,3.31,140.45,140.39,3.24]
[1763167434553,6.4117,140.49,140.38,10.05997077]
[1763167434554,3.31,140.48,140.41,3.24]
[1763167435338,0.0512034,140.46,140.43,3.28895843]
[1763167435746,3.3612034,140.46,140.43,3.28895843]
[1763167436648,3.3612034,140.46,140.43,0.04895843]
[1763167442753,0.0512034,140.46,140.43,3.28895843]
[1763167443654,3.1112034,140.46,140.43,3.28895843]
[1763167444346,0.0512034,140.46,140.44,6.44034498]
[1763167444552,3.06,140.5,140.45,3.23]
[1763167444951,3.06,140.53,140.46,3.23]
[1763167445160,3.06,140.53,140.47,9.67034498]
[1763167445454,3.06,140.55,140.48,6.44034498]
[1763167445648,3.06,140.5,140.49,0.05150359]
[1763167445957,3.06,140.5,140.48,0.04609262]
[1763167446251,3.10532944,140.5,140.48,0.05321659]
[1763167446960,9.51642944,140.5,140.48,0.05321659]
[1763167447150,3.06,140.49,140.48,0.05321659]
[1763167447454,3.06,140.47,140.42,9.67034498]
[1763167447857,3.06,140.47,140.42,6.44034498]
[1763167448055,3.06,140.46,140.42,6.44034498]
[1763167448257,3.06,140.46,140.41,6.44034498]
[1763167448561,3.06,140.44,140.42,0.0475974]
[1763167448858,3.10506861,140.44,140.42,0.04877587]
[1763167450159,3.23506861,140.44,140.42,0.04877587]
[1763167451658,0.04506861,140.44,140.43,3.17]
[1763167452050,0.04506861,140.44,140.42,0.04877587]
[1763167452252,3.23506861,140.44,140.42,0.04877587]
[1763167455156,3.19,140.43,140.42,0.04877587]
[1763167455357,3.19,140.43,140.37,6.44034498]
[1763167456247,3.19,140.41,140.39,0.04990009]
[1763167457058,3.19,140.43,140.39,0.04990009]
[1763167457366,3.19,140.43,140.39,3.21990009]
[1763167457546,3.19,140.43,140.39,0.04990009]
[1763167459665,3.19,140.43,140.39,3.21990009]
[1763167460059,0.04506861,140.44,140.39,3.21990009]
[1763167460259,0.04506861,140.44,140.4,3.17]
[1763167460565,3.23506861,140.44,140.4,3.17]
[1763167461260,0.04506861,140.44,140.4,3.17]
[1763167462274,0.04506861,140.44,140.42,3.17]
[1763167462568,0.04506861,140.44,140.43,3.17]
[1763167464362,0.04506861,140.44,140.43,9.61034498]
[1763167465564,3.19,140.48,140.44,3.17]
[1763167465767,3.19,140.48,140.44,9.63983198]
[1763167466368,3.19,140.51,140.45,3.17]
[1763167466563,0.04649505,140.47,140.45,9.63983198]
[1763167466767,0.04649505,140.47,140.46,3.17]
[1763167467965,0.04649505,140.47,140.46,9.63983198]
[1763167468170,14.92437168,140.54,140.47,3.17]
[1763167468373,9.5996,140.54,140.47,9.64519787]
[1763167468671,9.5996,140.54,140.48,6.47519787]
[1763167468873,9.5996,140.54,140.48,9.64519787]
[1763167469169,3.23539002,140.52,140.5,0.05413154]
[1763167471472,0.04539002,140.52,140.5,0.05413154]
[1763167471673,3.23539002,140.52,140.5,0.05413154]
[1763167471874,0.04539002,140.52,140.51,3.17]
[1763167472068,0.04539002,140.52,140.51,9.64519787]
[1763167472264,0.04539002,140.52,140.51,3.17]
[1763167472468,3.19,140.56,140.51,3.17]
[1763167472870,3.19,140.56,140.5,6.52932941]
[1763167473071,9.5985,140.56,140.5,6.52932941]
[1763167473272,3.19,140.55,140.5,0.05413154]
[1763167473474,3.19,140.53,140.5,0.05413154]
[1763167473676,3.23820919,140.53,140.5,0.05393603]
[1763167474873,3.2,140.51,140.5,0.05393603]
[1763167475477,4.62,140.51,140.5,0.05393603]
[1763167475673,3.2,140.51,140.5,0.05393603]
[1763167484974,3.2,140.49,140.44,6.46806942]
[1763167485179,3.2,140.49,140.43,9.62806942]
[1763167485780,3.2,140.49,140.44,3.16]
[1763167485980,3.25376348,140.48,140.45,0.05311933]
[1763167489791,9.66576348,140.48,140.45,0.05311933]
[1763167489987,3.2,140.47,140.45,0.05311933]
[1763167490188,9.6125,140.47,140.45,0.05311933]
[1763167490492,3.2,140.46,140.45,0.05311933]
[1763167491987,3.2,140.46,140.41,9.62806942]
[1763167492193,3.2,140.46,140.4,8.59014645]
[1763167492194,3.2,140.46,140.4,6.46806942]
[1763167492696,3.2,140.44,140.39,6.46806942]
[1763167492893,3.2,140.44,140.38,9.62806942]
[1763167493094,2.73366824,140.49,140.38,9.62806942]
[1763167493095,3.25407396,140.42,140.4,0.04808628]
[1763167493297,3.24806069,140.42,140.4,0.04639386]
[1763167493998,0.04806069,140.42,140.4,9.67446328]
[1763167494299,0.04806069,140.42,140.41,3.16]
[1763167494796,0.04806069,140.42,140.4,6.51446328]
[1763167494993,0.04806069,140.42,140.4,0.04639386]
[1763167494994,3.24806069,140.42,140.4,0.04639386]
[1763167495693,0.04806069,140.42,140.4,3.20639386]
[1763167495990,0.04806069,140.42,140.41,3.16]
[1763167496293,0.04806069,140.42,140.41,9.62806942]
[1763167496487,0.04806069,140.42,140.41,3.16]
[1763167497493,0.04806069,140.42,140.41,9.62806942]
[1763167498196,0.04806069,140.42,140.41,3.16]
[1763167498391,0.04806069,140.42,140.41,9.62806942]
[1763167498592,3.2,140.48,140.42,3.16]
[1763167499596,5.18406692,140.51,140.44,3.21103866]
[1763167499894,3.2,140.52,140.45,6.47905602]
[1763167500096,3.2,140.48,140.43,3.16]
[1763167500599,3.2,140.48,140.43,9.63905602]
[1763167500796,3.25431097,140.47,140.44,0.04838106]
[1763167501004,3.25046767,140.47,140.44,0.0511164]
[1763167503899,0.05046767,140.47,140.44,3.2911164]
[1763167504500,3.14046767,140.47,140.44,3.2911164]
[1763167506106,3.14046767,140.47,140.44,0.0511164]
[1763167506303,3.14046767,140.47,140.39,6.47905602]
[1763167506304,3.09,140.45,140.39,6.47905602]
[1763167506498,3.09,140.43,140.37,6.47905602]
[1763167506893,3.09,140.41,140.36,6.47905602]
[1763167507101,3.09,140.41,140.35,6.47905602]
[1763167507606,3.09,140.38,140.37,0.04809903]
[1763167510413,3.34,140.37,140.31,9.68905602]
[1763167510601,3.34,140.37,140.33,3.21]
[1763167511304,0.04789491,140.36,140.34,3.25521272]
[1763167511508,3.34,140.4,140.34,3.25521272]
[1763167511705,3.34,140.4,140.34,9.73426874]
[1763167512107,3.34,140.4,140.35,3.21]
[1763167512511,0.04948411,140.39,140.35,3.21]
[1763167513010,3.38948411,140.39,140.35,3.21]
[1763167513309,3.38948411,140.39,140.34,0.04521272]
[1763167513715,3.34,140.37,140.34,0.04521272]
[1763167514417,3.34,140.37,140.34,3.25521272]
[1763167516716,3.38948411,140.39,140.34,3.25521272]
[1763167517319,3.38948411,140.39,140.35,3.21]
[1763167517819,0.04948411,140.39,140.35,3.21]
[1763167518011,3.38948411,140.39,140.35,3.21]
[1763167518717,0.04948411,140.39,140.35,3.21]
[1763167518911,0.04948411,140.39,140.37,3.21]
[1763167519520,0.04948411,140.39,140.38,4.9610259]
[1763167520616,3.38948411,140.39,140.37,0.0507238]
[1763167521817,0.04948411,140.39,140.37,3.2607238]
[1763167522415,3.34,140.43,140.39,3.21]
[1763167523420,0.05448865,140.42,140.39,3.21]
[1763167523921,3.39448865,140.42,140.39,3.21]
[1763167524621,3.39448865,140.42,140.38,4.9610259]
[1763167524829,3.39448865,140.42,140.38,3.21]
[1763167526917,0.05448865,140.42,140.38,3.21]
[1763167527122,3.39448865,140.42,140.38,3.21]
[1763167527825,3.39448865,140.42,140.37,0.0507238]
[1763167529323,3.34,140.4,140.37,0.0507238]
[1763167531526,6.46938865,140.42,140.37,3.2607238]
[1763167531527,3.34,140.41,140.37,3.2607238]
[1763167533215,3.34,140.41,140.37,0.0507238]
[1763167535127,3.34,140.41,140.37,6.52977982]
[1763167535329,3.34,140.41,140.38,3.08]
[1763167535726,3.34,140.41,140.37,0.0507238]
[1763167536035,3.34,140.41,140.37,3.1307238]
[1763167536227,3.34,140.41,140.37,9.60977982]
[1763167536734,3.34,140.41,140.37,3.1307238]
[1763167537732,3.34,140.41,140.37,6.52977982]
[1763167538032,3.34,140.41,140.37,9.60977982]
[1763167538228,3.34,140.41,140.38,3.08]
[1763167538729,3.34,140.41,140.38,9.55905602]
[1763167541735,3.34,140.41,140.39,6.47905602]
[1763167542536,0.05448865,140.42,140.4,3.08]
[1763167542837,0.05448865,140.42,140.4,9.55905602]
[1763167543041,3.41448865,140.42,140.4,6.47905602]
[1763167544029,3.41448865,140.42,140.39,6.47905602]
[1763167544331,3.41448865,140.42,140.4,6.47905602]
[1763167545938,0.05448865,140.42,140.4,9.55905602]
[1763167546235,0.05448865,140.42,140.41,6.47905602]
[1763167548230,3.41448865,140.42,140.41,6.47905602]
[1763167548436,3.41448865,140.42,140.4,6.53394673]
[1763167548829,3.41448865,140.42,140.4,0.05489071]
[1763167549232,3.41448865,140.42,140.4,6.53394673]
[1763167549432,3.41448865,140.42,140.4,0.05489071]
[1763167549632,3.41448865,140.42,140.41,6.47905602]
[1763167550138,0.05448865,140.42,140.4,11.72503716]
[1763167550940,3.41448865,140.42,140.41,6.52064424]
[1763167551131,3.41448865,140.42,140.4,0.05489071]
[1763167551132,3.41448865,140.42,140.4,6.57553495]
[1763167551335,3.41448865,140.42,140.4,0.05489071]
[1763167551533,3.36,140.41,140.4,0.05489071]
[1763167552139,8.54919764,140.41,140.4,0.05489071]
[1763167554947,3.36,140.41,140.4,0.05489071]
[1763167560244,8.49115002,140.41,140.4,0.05489071]
[1763167561242,3.36,140.39,140.37,6.55530838]
[1763167561437,7.88403647,140.38,140.31,8.59014645]
[1763167561638,9.63455747,140.37,140.32,8.59014645]
[1763167561944,9.63455747,140.37,140.31,8.59014645]
[1763167561945,2.75,140.36,140.31,8.59014645]
[1763167562150,2.75,140.35,140.31,3.08]
[1763167562332,2.7985847,140.34,140.32,0.04870224]
[1763167562938,0.0485847,140.34,140.32,3.12870224]
[1763167563144,2.7985847,140.34,140.32,0.04870224]
[1763167564138,0.0485847,140.34,140.32,3.41870224]
[1763167564339,8.82125046,140.46,140.33,3.37]
[1763167564340,2.74,140.4,140.33,3.37]
[1763167564543,9.1558,140.4,140.34,3.37]
[1763167564847,2.74,140.4,140.34,11.96014645]
[1763167565147,2.74,140.4,140.35,3.37]
[1763167565346,2.74,140.4,140.34,8.59014645]
[1763167565347,2.78843345,140.39,140.36,3.42111917]
[1763167565840,2.78843345,140.39,140.36,0.05111917]
[1763167566848,2.78843345,140.39,140.36,3.42111917]
[1763167567041,2.78843345,140.39,140.36,0.05111917]
[1763167567451,2.74,140.37,140.36,0.05111917]
[1763167567942,2.69,140.36,140.29,8.59014645]
[1763167568151,2.69,140.3,140.27,3.37]
[1763167568342,2.69,140.3,140.26,3.37]
[1763167568845,9.1103,140.3,140.26,3.37]
[1763167569045,0.04838805,140.29,140.27,0.04766069]
[1763167569655,2.73838805,140.29,140.27,0.04766069]
[1763167569954,9.15918805,140.29,140.27,0.04766069]
[1763167570148,2.69,140.28,140.27,0.04766069]
[1763167571850,2.69,140.27,140.23,11.96014645]
[1763167572054,2.69,140.27,140.23,3.37]
[1763167572547,0.04838805,140.29,140.21,10.34066745]
[1763167572548,2.73838805,140.29,140.22,8.59014645]
[1763167572759,2.73693619,140.27,140.24,0.04670037]
[1763167573757,2.73693619,140.27,140.24,3.23670037]
[1763167574141,2.73693619,140.27,140.24,0.04670037]
[1763167574340,2.73693619,140.27,140.24,3.23670037]
[1763167577652,0.04693619,140.27,140.24,3.23670037]
[1763167579166,2.73693619,140.27,140.24,0.04670037]
[1763167579861,2.69,140.26,140.24,0.04670037]
[1763167580363,9.1122,140.26,140.24,0.04670037]
[1763167580566,2.69,140.25,140.24,0.04670037]
[1763167581455,2.69,140.23,140.15,11.78014645]
[1763167581661,2.69,140.23,140.15,3.19]
[1763167581955,2.69,140.2,140.15,3.19]
[1763167582156,2.69,140.2,140.13,1.24101778]
[1763167582157,2.69,140.2,140.13,3.19]
[1763167582375,2.69,140.17,140.15,0.05230994]
[1763167584660,0.05211975,140.18,140.15,0.05230994]
[1763167584851,2.74211975,140.18,140.15,0.05230994]
[1763167590475,2.69,140.17,140.15,0.05230994]
[1763167590961,2.69,140.16,140.09,3.19]
[1763167591864,0.04790627,140.14,140.09,3.19]
[1763167592168,0.04790627,140.14,140.11,3.23690376]
[1763167593766,2.71790627,140.14,140.11,0.04690376]
[1763167595370,9.14550627,140.14,140.11,0.04690376]
[1763167595562,2.67,140.13,140.11,0.04690376]
[1763167597059,2.67,140.12,140.11,0.04690376]
[1763167598473,6.4291,140.11,140.05,3.35]
[1763167598674,9.0991,140.11,140.05,3.35]
[1763167598873,9.0991,140.11,139.97,418.0]
[1763167598874,2.67,140.1,140.01,1.24212518]
[1763167599074,2.67,140.1,140.0,7.28293581]
[1763167599075,9.1006,140.08,140.02,3.35]
[1763167599371,2.67,140.08,140.02,3.35]
[1763167599675,2.72356675,140.06,140.04,0.0547102]
[1763167599866,2.71508363,140.06,140.04,0.05256069]
[1763167600674,0.04508363,140.06,140.04,0.05256069]
[1763167602077,2.71508363,140.06,140.04,0.05256069]
[1763167603069,2.67,140.05,140.04,0.05256069]
[1763167605873,2.67,140.04,139.99,3.35]
[1763167606277,2.67,140.04,139.96,3.35]
[1763167606978,2.71787317,140.01,139.99,0.05446387]
[1763167607180,2.71842552,140.01,139.99,0.04508885]
[1763167608679,2.67,139.99,139.93,3.35]
[1763167609674,2.71835914,139.97,139.95,0.05031415]
[1763167609879,2.71766327,139.97,139.95,0.05486872]
[1763167610382,9.15316327,139.97,139.95,0.05486872]
[1763167610581,2.67,139.96,139.95,0.05486872]
[1763167610988,6.48316327,139.97,139.95,3.40486872]
[1763167610989,0.04766327,139.97,139.95,3.40486872]
[1763167612681,2.67,140.05,139.97,3.35]
[1763167613480,2.67,140.04,139.97,3.35]